fUSD/lending_fUSD_20260315
["ID","MTS","AMOUNT","RATE_DAILY","PERIOD"]
[408424636,1773599457030,-666.0,0.00040997,30]
[408424637,1773599457042,-300.0,0.00040997,10]
[408424638,1773599457052,-300.0,0.00040998,10]
[408424639,1773599457064,-730.07,0.00040998,7]
[408424640,1773599457074,-500.0,0.00040998,7]
[408424641,1773599457084,-500.0,0.00040998,7]
[408424642,1773599457094,-500.0,0.00040998,7]
[408424643,1773599457105,-500.0,0.00040998,7]
[408424644,1773599457114,-500.0,0.00040998,7]
[408424645,1773599457125,-151.0,0.00040998,120]
[408424646,1773599457135,-500.0,0.00040998,7]
[408424647,1773599457144,-203.184924,0.00040998,120]
[408424648,1773599457154,-203.184924,0.00040998,120]
[408424649,1773599457164,-203.184924,0.00040998,120]
[408424650,1773599457175,-203.184917,0.00040998,120]
[408424651,1773599457187,-173.640999,0.00040998,120]
[408424652,1773599457197,-173.640999,0.00040998,120]
[408424653,1773599457207,-173.640999,0.00040998,120]
[408424654,1773599457217,-173.641005,0.00040998,120]
[408424655,1773599457227,-551.49,0.00040998,7]
[408424656,1773599457236,-151.0,0.00040998,120]
[408424657,1773599457246,-2057.51,0.00040998,7]
[408424658,1773599457257,-1265.97,0.00040998,7]
[408424659,1773599457267,-526.89,0.00040998,2]
[408424660,1773599457278,-526.89,0.00040998,2]
[408424661,1773599457288,-526.89,0.00040998,2]
[408424662,1773599457298,-761.7,0.00040998,7]
[408424663,1773599457308,-500.0,0.00040998,7]
[408424664,1773599457318,-500.0,0.00040998,7]
[408424665,1773599457328,-500.0,0.00040998,7]
[408424666,1773599457338,-4172.74,0.00040998,7]
[408424667,1773599457348,-4172.74,0.00040998,7]
[408424668,1773599457357,-4172.74,0.00040998,7]
[408424669,1773599457366,-151.0,0.00040998,120]
[408424670,1773599457375,-151.0,0.00040998,120]
[408424671,1773599457383,-204.735556,0.00040998,120]
[408424672,1773599457393,-500.0,0.00040998,7]
[408424673,1773599457402,-769.2,0.00040998,7]
[408424674,1773599457411,-769.2,0.00040998,7]
[408424675,1773599457421,-769.2,0.00040998,7]
[408424676,1773599457430,-151.0,0.00040998,120]
[408424677,1773599457439,-151.0,0.00040998,120]
[408424678,1773599457448,-5751.8,0.00040998,7]
[408424679,1773599457457,-5751.8,0.00040998,7]
[408424680,1773599457466,-5751.8,0.00040998,7]
[408424681,1773599457475,-6404.83,0.00040998,7]
[408424682,1773599457484,-6404.83,0.00040998,7]
[408424683,1773599457493,-6404.83,0.00040998,7]
[408424684,1773599457503,-29760.42,0.00040998,7]
[408424685,1773599457516,-29760.42,0.00040998,7]
[408424686,1773599457618,-1364.12,0.00040998,7]
[408424687,1773599457627,-1364.12,0.00040998,7]
[408424688,1773599457636,-1364.12,0.00040998,7]
[408424689,1773599457646,-13601.35,0.00040998,7]
[408424690,1773599457654,-13601.35,0.00040998,7]
[408424691,1773599457663,-6695.67,0.00040998,7]
[408424692,1773599457672,-6695.67,0.00040998,7]
[408424693,1773599457682,-995.68,0.00040998,7]
[408424694,1773599457691,-995.68,0.00040998,7]
[408424695,1773599457700,-462.408582,0.00040998,120]
[408424696,1773599457709,-462.408582,0.00040998,120]
[408424697,1773599457719,-462.408582,0.00040998,120]
[408424698,1773599457729,-462.408586,0.00040998,120]
[408424699,1773599457739,-500.0,0.00040998,7]
[408424700,1773599457749,-498.89633637,0.00040998,7]
[408424701,1773599457760,-4152.08,0.00040998,7]
[408424702,1773599457769,-4152.08,0.00040998,7]
[408424703,1773599457779,-4152.08,0.00040998,7]
[408424704,1773599457788,-151.0,0.00040998,120]
[408424705,1773599457798,-584.37,0.00040998,2]
[408424706,1773599457809,-584.37,0.00040998,2]
[408424707,1773599457818,-500.0,0.00040998,7]
[408424708,1773599457828,-500.0,0.00040998,7]
[408424709,1773599457837,-500.0,0.00040998,7]
[408424710,1773599457846,-730.07,0.00040999,7]
[408424711,1773599457855,-730.07,0.00040999,7]
[408424712,1773599457865,-730.07,0.00040999,7]
[408424713,1773599457874,-730.07,0.00040999,7]
[408424714,1773599457883,-730.07,0.00040999,7]
[408424715,1773599457892,-730.07,0.00040999,7]
[408424716,1773599457901,-730.07,0.00040999,7]
[408424717,1773599457915,-730.07,0.00040999,7]
[408424718,1773599457924,-730.16436354,0.00040999,7]
[408424719,1773599457934,-237.44445126,0.00040999,7]
[408424720,1773599457943,-500.0,0.00040999,7]
[408424721,1773599457954,-500.0,0.00040999,7]
[408424722,1773599457963,-500.0,0.00040999,7]
[408424723,1773599457972,-500.0,0.00040999,7]
[408424724,1773599457982,-550.76648267,0.00040999,7]
[408424725,1773599457990,-500.0,0.00040999,7]
[408424726,1773599458000,-500.0,0.00040999,7]
[408424727,1773599458009,-500.0,0.00040999,7]
[408424728,1773599458018,-500.0,0.00040999,7]
[408424729,1773599458027,-572.01806934,0.00040999,7]
[408424730,1773599458036,-500.0,0.00040999,7]
[408424731,1773599458045,-500.0,0.00040999,7]
[408424732,1773599458054,-500.0,0.00040999,7]
[408424733,1773599458063,-574.85172267,0.00040999,7]
[408424734,1773599458072,-551.49,0.00040999,7]
[408424735,1773599458081,-551.49,0.00040999,7]
[408424736,1773599458090,-551.49,0.00040999,7]
[408424737,1773599458099,-551.49,0.00040999,7]
[408424738,1773599458108,-551.49,0.00040999,7]
[408424739,1773599458117,-551.49,0.00040999,7]
[408424740,1773599458127,-551.49,0.00040999,7]
[408424741,1773599458136,-551.49,0.00040999,7]
[408424742,1773599458145,-551.63,0.00040999,7]
[408424743,1773599458155,-2057.51,0.00040999,7]
[408424744,1773599458166,-2057.51,0.00040999,7]
[408424745,1773599458176,-2057.51,0.00040999,7]
[408424746,1773599458187,-2057.51,0.00040999,7]
[408424747,1773599458196,-2057.51,0.00040999,7]
[408424748,1773599458206,-2057.51,0.00040999,7]
[408424749,1773599458215,-2057.51,0.00040999,7]
[408424750,1773599458225,-2057.51,0.00040999,7]
[408424751,1773599458235,-2057.67401177,0.00040999,7]
[408424752,1773599458244,-1265.97,0.00040999,7]
[408424753,1773599458253,-1265.97,0.00040999,7]
[408424754,1773599458263,-1265.97,0.00040999,7]
[408424755,1773599458272,-1265.97,0.00040999,7]
[408424756,1773599458281,-1265.97,0.00040999,7]
[408424757,1773599458290,-1265.97,0.00040999,7]
[408424758,1773599458299,-1265.97,0.00040999,7]
[408424759,1773599458308,-1265.97,0.00040999,7]
[408424760,1773599458318,-1266.17653833,0.00040999,7]
[408424761,1773599458327,-526.89,0.00040999,2]
[408424762,1773599458336,-761.7,0.00040999,7]
[408424763,1773599458345,-526.89,0.00040999,2]
[408424764,1773599458355,-761.7,0.00040999,7]
[408424765,1773599458365,-761.7,0.00040999,7]
[408424766,1773599458375,-526.89,0.00040999,2]
[408424767,1773599458385,-761.7,0.00040999,7]
[408424768,1773599458394,-526.89,0.00040999,2]
[408424769,1773599458403,-761.7,0.00040999,7]
[408424770,1773599458413,-526.89,0.00040999,2]
[408424771,1773599458423,-761.7,0.00040999,7]
[408424772,1773599458433,-526.89,0.00040999,2]
[408424773,1773599458443,-761.7,0.00040999,7]
[408424774,1773599458452,-527.00545108,0.00040999,2]
[408424775,1773599458461,-761.7,0.00040999,7]
[408424776,1773599458474,-761.89362453,0.00040999,7]
[408424777,1773599458484,-588.65654593,0.00040999,7]
[408424778,1773599458495,-4172.74,0.00040999,7]
[408424779,1773599458504,-4172.74,0.00040999,7]
[408424780,1773599458514,-4172.74,0.00040999,7]
[408424781,1773599458523,-4172.74,0.00040999,7]
[408424782,1773599458532,-4172.74,0.00040999,7]
[408424783,1773599458542,-4172.74,0.00040999,7]
[408424784,1773599458551,-4172.92197564,0.00040999,7]
[408424785,1773599458561,-321.83694909,0.00040999,7]
[408424786,1773599458571,-769.2,0.00040999,7]
[408424787,1773599458580,-769.2,0.00040999,7]
[408424788,1773599458590,-769.2,0.00040999,7]
[408424789,1773599458600,-769.2,0.00040999,7]
[408424790,1773599458609,-769.2,0.00040999,7]
[408424791,1773599458619,-769.2,0.00040999,7]
[408424792,1773599458629,-769.3341947,0.00040999,7]
[408424793,1773599458640,-5751.8,0.00040999,7]
[408424794,1773599458650,-5751.8,0.00040999,7]
[408424795,1773599458660,-5751.8,0.00040999,7]
[408424796,1773599458669,-5751.8,0.00040999,7]
[408424797,1773599458679,-5751.8,0.00040999,7]
[408424798,1773599458688,-5751.8,0.00040999,7]
[408424799,1773599458697,-5752.02099608,0.00040999,7]
[408424800,1773599458707,-6404.83,0.00040999,7]
[408424801,1773599458716,-6404.83,0.00040999,7]
[408424802,1773599458726,-6404.83,0.00040999,7]
[408424803,1773599458736,-6404.83,0.00040999,7]
[408424804,1773599458746,-6404.83,0.00040999,7]
[408424805,1773599458755,-6404.83,0.00040999,7]
[408424806,1773599458764,-6404.8965158,0.00040999,7]
[408424807,1773599458773,-29760.42,0.00040999,7]
[408424808,1773599458783,-29760.42,0.00040999,7]
[408424809,1773599458792,-29760.42,0.00040999,7]
[408424810,1773599458801,-29760.42,0.00040999,7]
[408424811,1773599458811,-29760.42,0.00040999,7]
[408424812,1773599458820,-29760.42,0.00040999,7]
[408424813,1773599458829,-29760.54298012,0.00040999,7]
[408424814,1773599458839,-1364.12,0.00040999,7]
[408424815,1773599458848,-1364.12,0.00040999,7]
[408424816,1773599458857,-1364.12,0.00040999,7]
[408424817,1773599458870,-1364.12,0.00040999,7]
[408424818,1773599458880,-1364.12,0.00040999,7]
[408424819,1773599458889,-1364.12,0.00040999,7]
[408424820,1773599458899,-1364.2527932,0.00040999,7]
[408424821,1773599458909,-13601.35,0.00040999,7]
[408424822,1773599458922,-13601.35,0.00040999,7]
[408424823,1773599458931,-13601.35,0.00040999,7]
[408424824,1773599458941,-13601.35,0.00040999,7]
[408424825,1773599458951,-13601.35,0.00040999,7]
[408424826,1773599458960,-13601.35,0.00040999,7]
[408424827,1773599458969,-13601.5447083,0.00040999,7]
[408424828,1773599458979,-6695.67,0.00040999,7]
[408424829,1773599458991,-6695.67,0.00040999,7]
[408424830,1773599459000,-6695.67,0.00040999,7]
[408424831,1773599459011,-6695.67,0.00040999,7]
[408424832,1773599459020,-6695.67,0.00040999,7]
[408424833,1773599459030,-6695.67,0.00040999,7]
[408424834,1773599459039,-6695.68255815,0.00040999,7]
[408424835,1773599459048,-995.68,0.00040999,7]
[408424836,1773599459058,-995.68,0.00040999,7]
[408424837,1773599459067,-995.68,0.00040999,7]
[408424838,1773599459077,-995.68,0.00040999,7]
[408424839,1773599459086,-995.68,0.00040999,7]
[408424840,1773599459095,-995.68,0.00040999,7]
[408424841,1773599459105,-995.76,0.00040999,7]
[408424842,1773599459115,-4152.08,0.00040999,7]
[408424843,1773599459125,-4152.08,0.00040999,7]
[408424844,1773599459135,-4152.08,0.00040999,7]
[408424845,1773599459145,-4152.08,0.00040999,7]
[408424846,1773599459273,-4152.08,0.00040999,7]
[408424847,1773599459283,-4152.08,0.00040999,7]
[408424848,1773599459294,-4152.08,0.00040999,7]
[408424849,1773599459304,-4152.16,0.00040999,7]
[408424850,1773599459315,-584.37,0.00040999,2]
[408424851,1773599459325,-584.37,0.00040999,2]
[408424852,1773599459335,-584.37,0.00040999,2]
[408424853,1773599459346,-584.37,0.00040999,2]
[408424854,1773599459355,-584.37,0.00040999,2]
[408424855,1773599459369,-584.45,0.00040999,2]
[408424856,1773599459378,-500.0,0.00040999,7]
[408424857,1773599459388,-500.0,0.00040999,7]
[408424858,1773599459397,-566.83106078,0.00040999,7]
[408424859,1773599459407,-550.95001552,0.00041,31]
[408424860,1773599459416,-153367.70404346,0.00041,6]
[408424861,1773599459426,-117191.53034201,0.00041,30]
[408424862,1773599459436,-1376.08582069,0.00041,30]
[408424863,1773599459445,-40111.64788504,0.00041,120]
[408424864,1773599459455,-2500.0,0.00041,30]
[408424865,1773599459465,-5000000.0,0.00041,120]
[408424866,1773599459474,-5000000.0,0.00041,120]
[408424867,1773599459483,-3000000.0,0.00041,120]
[408424868,1773599459492,-150.0,0.00041,2]
[408424869,1773599459501,-351.66521112,0.00041,30]
[408424870,1773599459510,-7740.0729038,0.00041,30]
[408424871,1773599459521,-200.0,0.00041,2]
[408424872,1773599459531,-469.87233333,0.00041,30]
[408424873,1773599459540,-178.77563255,0.00041,30]
[408424874,1773599459550,-469.87233333,0.00041,7]
[408424875,1773599459559,-1047.3,0.00041041,30]
[408424876,1773599459568,-1000.0,0.00041048,120]
[408424877,1773599459578,-333.6,0.00041068,120]
[408424878,1773599459587,-874.59124992,0.00041068,120]
[408424879,1773599459597,-374.8248214,0.00041068,120]
[408424880,1773599459606,-544.57343,0.00041088,30]
[408424881,1773599459615,-1248.0094708,0.00041094,2]
[408424882,1773599459628,-1248.0094708,0.00041094,2]
[408424883,1773599459637,-1248.0094708,0.00041094,2]
[408424884,1773599459647,-1248.0094708,0.00041094,2]
[408424885,1773599459656,-1248.0094708,0.00041094,2]
[408424886,1773599459665,-1248.0094708,0.00041094,2]
[408424887,1773599459675,-1248.0094708,0.00041094,2]
[408424888,1773599459685,-1248.0094708,0.00041094,2]
[408424889,1773599459695,-1248.0094708,0.00041094,2]
[408424890,1773599459705,-1248.00947079,0.00041094,2]
[408424891,1773599459716,-1248.00947079,0.00041094,2]
[408424892,1773599459726,-1248.00947079,0.00041094,2]
[408424893,1773599459736,-1248.00947079,0.00041094,2]
[408424894,1773599459746,-1600.0,0.00041095,60]
[408424895,1773599459756,-10000.0,0.00041096,30]
[408424896,1773599459767,-10000.0,0.00041096,30]
[408424897,1773599459778,-3612.50668646,0.00041096,30]
[408424898,1773599459789,-848.0,0.00041096,120]
[408424899,1773599459798,-480.88,0.00041096,60]
[408424900,1773599459807,-197.66,0.00041096,60]
[408424901,1773599459817,-1000.0,0.00041096,60]
[408424902,1773599459827,-1000.0,0.00041096,60]
[408424903,1773599459835,-1000.0,0.00041096,60]
[408424904,1773599459845,-1000.0,0.00041096,60]
[408424905,1773599459855,-1000.0,0.00041096,60]
[408424906,1773599459866,-1000.0,0.00041096,60]
[408424907,1773599459876,-1000.0,0.00041096,60]
[408424908,1773599459887,-1000.0,0.00041096,60]
[408424909,1773599459897,-1000.0,0.00041096,60]
[408424910,1773599459907,-1000.0,0.00041096,60]
[408424911,1773599459923,-1000.0,0.00041096,60]
[408424912,1773599459932,-1000.0,0.00041096,60]
[408424913,1773599459942,-1000.0,0.00041096,60]
[408424914,1773599459953,-1000.0,0.00041096,60]
[408424915,1773599459962,-1000.0,0.00041096,60]
[408424916,1773599459972,-1000.0,0.00041096,60]
[408424917,1773599459981,-1000.0,0.00041096,60]
[408424918,1773599459992,-1034.0,0.00041096,60]
[408424919,1773599460002,-1000.0,0.00041096,60]
[408424920,1773599460011,-1000.0,0.00041096,60]
[408424921,1773599460023,-1000.0,0.00041096,60]
[408424922,1773599460033,-1000.0,0.00041096,60]
[408424923,1773599460042,-1000.0,0.00041096,60]
[408424924,1773599460052,-1000.0,0.00041096,60]
[408424925,1773599460062,-1000.0,0.00041096,60]
[408424926,1773599460071,-1000.0,0.00041096,60]
[408424927,1773599460080,-1000.0,0.00041096,60]
[408424928,1773599460089,-1000.0,0.00041096,60]
[408424929,1773599460099,-1000.0,0.00041096,60]
[408424930,1773599460108,-1000.0,0.00041096,60]
[408424931,1773599460117,-1000.0,0.00041096,60]
[408424932,1773599460126,-1000.0,0.00041096,60]
[408424933,1773599460136,-1000.0,0.00041096,60]
[408424934,1773599460146,-1000.0,0.00041096,60]
[408424935,1773599460155,-1000.0,0.00041096,60]
[408424936,1773599460165,-1000.0,0.00041096,60]
[408424937,1773599460175,-1000.0,0.00041096,60]
[408424938,1773599460184,-1000.0,0.00041096,60]
[408424939,1773599460193,-1000.0,0.00041096,60]
[408424940,1773599460205,-1000.0,0.00041096,60]
[408424941,1773599460215,-1000.0,0.00041096,60]
[408424942,1773599460224,-1000.0,0.00041096,60]
[408424943,1773599460234,-1000.0,0.00041096,60]
[408424944,1773599460244,-1000.0,0.00041096,60]
[408424945,1773599460254,-164.64615531,0.00041096,2]
[408424946,1773599460264,-1000.0,0.00041096,60]
[408424947,1773599460274,-1000.0,0.00041096,60]
[408424948,1773599460283,-1000.0,0.00041096,60]
[408424949,1773599460294,-1000.0,0.00041096,60]
[408424950,1773599460306,-1000.0,0.00041096,60]
[408424951,1773599460316,-1000.0,0.00041096,60]
[408424952,1773599460326,-889.0,0.00041096,60]
[408424953,1773599460337,-300.0,0.000411,2]
[408424954,1773599460347,-409.51,0.00041102,30]
[408424955,1773599460358,-597.59,0.00041102,30]
[408424956,1773599460368,-155.21346378,0.000412,30]
[408424957,1773599460378,-544.57343,0.00041288,30]
[408424958,1773599460388,-1000.0,0.00041322,120]
[408424959,1773599460398,-500.0,0.00041369,60]
[408424960,1773599460409,-1300.0,0.00041369,60]
[408424961,1773599460423,-499.66,0.0004137,5]
[408424962,1773599460435,-402.69,0.000414,14]
[408424963,1773599460445,-357.5,0.000414,30]
[408424964,1773599460455,-1310.59,0.000414,30]
[408424965,1773599460464,-200.0,0.000414,120]
[408424966,1773599460474,-2000.0,0.00041459,120]
[408424967,1773599460484,-544.57343,0.00041488,30]
[408424968,1773599460494,-151.0,0.000415,7]
[408424969,1773599460504,-1004.0,0.000415,10]
[408424970,1773599460514,-2190.33671612,0.000415,30]
[408424971,1773599460524,-1000.0,0.00041596,120]
[408424972,1773599460534,-1600.0,0.00041643,60]
[408424973,1773599460545,-848.0,0.00041644,120]
[408424974,1773599460554,-544.57343,0.00041688,30]
[408424975,1773599460564,-10134.0,0.000417,117]
[408424976,1773599460573,-150.0,0.0004172,7]
[408424977,1773599460583,-269.0,0.0004172,7]
[408424978,1773599460593,-150.0,0.0004172,14]
[408424979,1773599460603,-150.0,0.0004172,14]
[408424980,1773599460613,-212.0,0.0004172,14]
[408424981,1773599460622,-587.11,0.00041787,120]
[408424982,1773599460632,-170.7,0.000418,30]
[408424983,1773599460642,-1355.3927,0.000418,60]
[408424984,1773599460652,-13900.187,0.000418,120]
[408424985,1773599460662,-13900.18,0.000418,30]
[408424986,1773599460672,-1000.0,0.0004187,120]
[408424987,1773599460686,-544.57343,0.00041888,30]
[408424988,1773599460696,-500.0,0.00041917,60]
[408424989,1773599460709,-1300.0,0.00041917,60]
[408424990,1773599460720,-925.66,0.00041955,120]
[408424991,1773599460731,-500.0,0.00042,2]
[408424992,1773599460742,-572.0,0.00042,120]
[408424993,1773599460853,-201.01832286,0.00042,30]
[408424994,1773599460865,-449.0,0.00042,120]
[408424995,1773599460874,-500.0,0.00042,120]
[408424996,1773599460885,-500.0,0.00042,120]
[408424997,1773599460896,-570.0,0.00042,120]
[408424998,1773599460910,-186.44593375,0.00042,120]
[408424999,1773599460920,-179.82,0.00042,30]
[408425000,1773599460930,-313.82,0.00042,10]
[408425001,1773599460944,-683.81992757,0.00042,120]
[408425002,1773599460954,-712.74170846,0.00042,120]
[408425003,1773599460964,-1374.29043,0.0004201,2]
[408425004,1773599460973,-582.0,0.000421,3]
[408425005,1773599460983,-1000.0,0.00042144,120]
[408425006,1773599460993,-1600.0,0.00042191,60]
[408425007,1773599461003,-792.1,0.00042192,120]
[408425008,1773599461012,-402.69,0.000422,14]
[408425009,1773599461021,-357.5,0.000422,30]
[408425010,1773599461030,-1310.59,0.000422,30]
[408425011,1773599461040,-469.87233333,0.000422,30]
[408425012,1773599461049,-469.87233333,0.000422,120]
[408425013,1773599461059,-469.87233333,0.000422,7]
[408425014,1773599461068,-291736.2851,0.0004222,7]
[408425015,1773599461077,-500.0,0.00042228,26]
[408425016,1773599461087,-512.56,0.00042228,26]
[408425017,1773599461096,-1078.0,0.000423,60]
[408425018,1773599461105,-213.0,0.00042355,14]
[408425019,1773599461115,-200.0,0.00042355,7]
[408425020,1773599461124,-200.0,0.00042355,7]
[408425021,1773599461133,-200.0,0.00042355,7]
[408425022,1773599461141,-200.0,0.00042355,7]
[408425023,1773599461151,-176.0,0.00042355,7]
[408425024,1773599461160,-200.0,0.00042355,14]
[408425025,1773599461169,-200.0,0.00042355,14]
[408425026,1773599461178,-200.0,0.00042355,14]
[408425027,1773599461189,-200.0,0.00042355,14]
[408425028,1773599461198,-200.0,0.00042355,14]
[408425029,1773599461207,-193.0,0.00042355,14]
[408425030,1773599461218,-8185.48,0.00042355,30]
[408425031,1773599461230,-1000.0,0.00042418,120]
[408425032,1773599461240,-500.0,0.00042465,60]
[408425033,1773599461249,-1300.0,0.00042465,60]
[408425034,1773599461258,-174400.80458825,0.000425,120]
[408425035,1773599461267,-13096.77,0.00042504,120]
[408425036,1773599461277,-160.0,0.00042574,120]
[408425037,1773599461286,-151.5,0.00042589,2]
[408425038,1773599461295,-150.0,0.0004264,2]
[408425039,1773599461305,-1000.0,0.00042692,120]
[408425040,1773599461314,-150.0,0.000427,2]
[408425041,1773599461323,-1050.38737355,0.00042816,2]
[408425042,1773599461332,-1085.8613559,0.00042816,2]
[408425043,1773599461341,-300.0,0.00042816,2]
[408425044,1773599461353,-303.27169845,0.00042816,2]
[408425045,1773599461362,-300.0,0.00042816,2]
[408425046,1773599461371,-300.0,0.00042816,120]
[408425047,1773599461381,-300.0,0.00042816,120]
[408425048,1773599461390,-1049.89601077,0.00042816,2]
[408425049,1773599461400,-307.09317041,0.00042816,2]
[408425050,1773599461410,-857.47271976,0.00042816,2]
[408425051,1773599461420,-308.36419652,0.00042816,2]
[408425052,1773599461430,-505.36322303,0.00042816,2]
[408425053,1773599461441,-460.10536322,0.00042816,2]
[408425054,1773599461451,-300.0,0.00042816,2]
[408425055,1773599461460,-448.21273408,0.00042816,2]
[408425056,1773599461469,-302.45218568,0.00042816,2]
[408425057,1773599461479,-520.42881649,0.00042816,2]
[408425058,1773599461488,-307.31607308,0.00042816,2]
[408425059,1773599461499,-300.0,0.00042816,2]
[408425060,1773599461510,-1085.86135594,0.00042816,2]
[408425061,1773599461520,-300.0,0.00042816,2]
[408425062,1773599461531,-303.27169845,0.00042816,2]
[408425063,1773599461541,-300.0,0.00042816,2]
[408425064,1773599461551,-1050.38737355,0.00042816,2]
[408425065,1773599461561,-307.09317041,0.00042816,2]
[408425066,1773599461570,-857.47271976,0.00042816,2]
[408425067,1773599461579,-308.36419654,0.00042816,2]
[408425068,1773599461588,-460.10536322,0.00042816,2]
[408425069,1773599461598,-300.0,0.00042816,2]
[408425070,1773599461607,-448.21273408,0.00042816,2]
[408425071,1773599461617,-302.45218568,0.00042816,2]
[408425072,1773599461626,-520.42881649,0.00042816,2]
[408425073,1773599461636,-307.31607308,0.00042816,2]
[408425074,1773599461645,-300.0,0.00042816,2]
[408425075,1773599461654,-1085.8613559,0.00042816,2]
[408425076,1773599461664,-303.27169845,0.00042816,2]
[408425077,1773599461673,-300.0,0.00042816,2]
[408425078,1773599461684,-1049.89601077,0.00042816,2]
[408425079,1773599461693,-307.09317041,0.00042816,2]
[408425080,1773599461703,-857.47271976,0.00042816,2]
[408425081,1773599461712,-308.36419652,0.00042816,2]
[408425082,1773599461721,-460.10536322,0.00042816,2]
[408425083,1773599461731,-300.0,0.00042816,2]
[408425084,1773599461741,-448.21273408,0.00042816,2]
[408425085,1773599461750,-302.45218568,0.00042816,2]
[408425086,1773599461759,-520.42881649,0.00042816,2]
[408425087,1773599461768,-307.31607308,0.00042816,2]
[408425088,1773599461777,-300.0,0.00042816,2]
[408425089,1773599461786,-1085.86135592,0.00042816,2]
[408425090,1773599461795,-303.27169845,0.00042816,2]
[408425091,1773599461804,-383.39163001,0.00042816,2]
[408425092,1773599461813,-1050.14169215,0.00042816,2]
[408425093,1773599461824,-307.09317041,0.00042816,2]
[408425094,1773599461834,-857.47271976,0.00042816,2]
[408425095,1773599461843,-308.36419654,0.00042816,2]
[408425096,1773599461852,-460.10536322,0.00042816,2]
[408425097,1773599461861,-300.0,0.00042816,2]
[408425098,1773599461871,-448.21273408,0.00042816,2]
[408425099,1773599461880,-302.45218568,0.00042816,2]
[408425100,1773599461889,-520.42881649,0.00042816,2]
[408425101,1773599461898,-307.31607308,0.00042816,2]
[408425102,1773599461908,-300.0,0.00042816,2]
[408425103,1773599461921,-1085.8613559,0.00042816,2]
[408425104,1773599461930,-303.27169845,0.00042816,2]
[408425105,1773599461940,-1050.14169216,0.00042816,2]
[408425106,1773599461951,-307.09317041,0.00042816,2]
[408425107,1773599461960,-857.47271976,0.00042816,2]
[408425108,1773599461969,-308.36419652,0.00042816,2]
[408425109,1773599461979,-460.10536322,0.00042816,2]
[408425110,1773599461989,-300.0,0.00042816,2]
[408425111,1773599461999,-448.21273408,0.00042816,2]
[408425112,1773599462010,-302.45218568,0.00042816,2]
[408425113,1773599462019,-520.42881649,0.00042816,2]
[408425114,1773599462028,-307.31607308,0.00042816,2]
[408425115,1773599462037,-296.09,0.00042834,30]
[408425116,1773599462047,-1616.984,0.00042839,2]
[408425117,1773599462057,-175.0,0.00042848,7]
[408425118,1773599462066,-300.0,0.00042853,2]
[408425119,1773599462075,-1085.86135592,0.00042853,2]
[408425120,1773599462085,-303.27169845,0.00042853,2]
[408425121,1773599462094,-1050.38737355,0.00042853,2]
[408425122,1773599462103,-307.09317041,0.00042853,2]
[408425123,1773599462112,-857.47271976,0.00042853,2]
[408425124,1773599462122,-308.36419652,0.00042853,2]
[408425125,1773599462131,-460.10536322,0.00042853,2]
[408425126,1773599462141,-300.0,0.00042853,2]
[408425127,1773599462150,-448.21273408,0.00042853,2]
[408425128,1773599462244,-302.45218568,0.00042853,2]
[408425129,1773599462254,-520.42881649,0.00042853,2]
[408425130,1773599462263,-307.31607308,0.00042853,2]
[408425131,1773599462273,-300.0,0.00042853,2]
[408425132,1773599462282,-1085.8613559,0.00042853,2]
[408425133,1773599462291,-303.27169845,0.00042853,2]
[408425134,1773599462300,-1049.89601077,0.00042853,2]
[408425135,1773599462310,-307.09317041,0.00042853,2]